Cogmind - Beta 15 @@@ ROGUE MODE // 2025.10.16 @ 18:56:29 Player: aliser Result: Destroyed by G-73 Enforcer with Phase Gun Performance ------------- Evolutions (8) 4000 Regions Visited (16) 3200 Robots Destroyed (150) 750 Value Destroyed (6018) 6018 Prototype IDs (17) 340 Alien Tech Used (0) 0 Bonus (6877) 6877 TOTAL SCORE: 21185 Bonus ------- High Alert Combat Kills 661 Follower Combat Kills 3503 Entered DSFs 500 Built Enhanced Grunts 300 A7 Reached Mainframe 300 Met R17 at Cetus 500 Met R17 at Research 2000 Friendly Fire -887 Cogmind --------- Core Integrity 0/1450 Matter 247/300 Energy 98/100 System Corruption 10% Temperature Cool (61) Movement Core (50) Location -2/Quarantine Parts ------- > --- POWER (3) -------- (None) > --- PROPULSION (4) --- (None) > --- UTILITY (12) ----- (None) > --- WEAPON (4) ------- (None) > --- INVENTORY (5) ---- Quantum Reactor Quantum Reactor Compact Matter Pod (150) Plasma Cutter Peak State ------------ > --- POWER ------------ Particle Reactor Quantum Reactor Light Quantum Reactor > --- PROPULSION ------- Shield Leg Shield Leg Shield Leg Shield Leg > --- UTILITY ---------- Advanced Heat Sink High-capacity Storage Unit Energy Well Structural Scanner Core Analyzer Armor Integrity Analyzer Improved Transmission Jammer Improved Heavy Armor Plating Improved Focal Shield Improved Shock Absorption System Advanced Force Field > --- WEAPON ----------- Matter Neutralizer Enhanced Nova Cannon Light Antimatter Cannon > --- INVENTORY -------- Neutrino Core Reinforced Fission Core Antimatter Reactor Light Quantum Reactor Improved Medium Treads Improved Medium Treads Improved Medium Treads Improved Medium Treads Armored Medium Treads Shield Leg Compact Matter Pod Improved Reaction Control System Graphene Brace EM Disruption Field Long-range Proton Cannon Heavy Phase Cannon Heavy Phase Cannon Heavy Phase Cannon Heavy Machine Gun Plasma Cutter [Rating: 145] Favorites ----------- Power Fission Core Engine Improved Deuterium Engine Power Core Fission Core Reactor Particle Reactor Propulsion Shield Leg Treads Armored Treads Leg Shield Leg Utility High-capacity Storage Unit Device Advanced Heat Sink Storage High-capacity Storage Unit Processor Armor Integrity Analyzer Hackware Authchip [Propulsion] Protection Improved Medium Armor Plating Weapon Cooled Pulse Rifle Energy Gun Cooled Pulse Rifle Energy Cannon Heavy Ion Cannon Ballistic Gun Autogun Ballistic Cannon Light Antimatter Cannon Launcher Long-range Missile Launcher Special Weapon Plasma Cutter Build | -11 -10 -9 -9 -8 -7 -6 -6 -6 -6 -6 -5 -5 -4 -3 -2 -2 ------- Run | Yrd Mat Mat Min Mat Fac Fac Ext Cet Arc Hub Fac DSF Fac Res Res Qua Slots Evolved 16 | . . 2 . 2 2 2 . . . . 2 . 2 2 2 . Power 2 | . . . . . 1 . . . . . . . . 1 . . Propulsion 2 | . . 1 . . . . . . . . 1 . . . . . Utility 10 | . . 1 . 2 1 2 . . . . . . 2 1 1 . Weapon 2 | . . . . . . . . . . . 1 . . . 1 . Parts Attached 187 | 6 11 10 5 27 11 12 34 6 2 15 7 6 3 8 19 5 Power 29 | 1 2 2 . 2 1 2 4 1 1 3 . 1 1 2 4 2 Engine 10 | 1 2 2 . . . 2 1 . . 2 . . . . . . Core 11 | . . . . 2 1 . 3 1 1 . . 1 . 1 1 . Reactor 8 | . . . . . . . . . . 1 . . 1 1 3 2 Propulsion 51 | 2 5 1 4 9 . . 11 . . 5 4 1 . 4 3 2 Treads 13 | . 2 . 1 4 . . . . . . 4 . . . 2 . Leg 38 | 2 3 1 3 5 . . 11 . . 5 . 1 . 4 1 2 Wheel . | . . . . . . . . . . . . . . . . . Hover . | . . . . . . . . . . . . . . . . . Flight . | . . . . . . . . . . . . . . . . . Utility 69 | 1 3 2 1 10 7 8 15 3 1 4 1 3 2 1 7 . Device 37 | . . 1 . 4 6 4 6 1 1 3 1 2 1 1 6 . Storage 5 | 1 1 . . . 1 1 1 . . . . . . . . . Processor 5 | . . . . 1 . 1 3 . . . . . . . . . Hackware 1 | . . . . . . . . . . . . 1 . . . . Protection 21 | . 2 1 1 5 . 2 5 2 . 1 . . 1 . 1 . Artifact . | . . . . . . . . . . . . . . . . . Weapon 38 | 2 1 5 . 6 3 2 4 2 . 3 2 1 . 1 5 1 Energy Gun 10 | . . 2 . 1 3 . 1 1 . 1 . . . . . 1 Energy Cannon 18 | . . 2 . 5 . 1 1 . . 2 2 1 . . 4 . Ballistic Gun 5 | 2 1 1 . . . . . . . . . . . . 1 . Ballistic Cannon 2 | . . . . . . . . 1 . . . . . 1 . . Launcher 2 | . . . . . . . 2 . . . . . . . . . Special Weapon 1 | . . . . . . 1 . . . . . . . . . . Impact Weapon . | . . . . . . . . . . . . . . . . . Slashing Weapon . | . . . . . . . . . . . . . . . . . Piercing Weapon . | . . . . . . . . . . . . . . . . . Special Melee Weapon . | . . . . . . . . . . . . . . . . . Unidentified Prototypes 14 | . . 2 . 1 2 2 . 1 . 4 . . . 2 . . Parts Lost 61 | . 1 . 1 7 . 2 6 3 . 3 . 3 . . 34 1 Power 8 | . . . . . . . . . . 1 . 1 . . 6 . Propulsion 17 | . 1 . 1 2 . . 2 1 . . . . . . 9 1 Utility 24 | . . . . 3 . 2 4 1 . 1 . . . . 13 . Weapon 12 | . . . . 2 . . . 1 . 1 . 2 . . 6 . Highest Loss Streak 32 | . 1 . 1 6 . 2 4 3 . 2 . 2 . . 32 1 To Critical Strikes . | . . . . . . . . . . . . . . . . . Average Backups 16 | 2 5 13 14 14 13 19 19 18 16 19 19 18 18 19 18 3 Power 2 | 1 1 1 2 2 1 1 2 2 3 3 2 1 2 2 3 1 Propulsion 3 | . 2 3 3 3 . . 3 2 2 3 4 6 7 7 5 . Utility 6 | . . 3 4 5 7 10 8 9 8 8 8 7 6 5 4 1 Weapon 3 | . 1 4 4 2 4 4 4 3 2 3 3 1 2 3 3 . Tool/Special . | . . . . . . . . . . . . . . . . . Unused Backups 25 | . . 3 1 3 1 2 3 . . 2 1 4 . 2 . 3 Power 4 | . . . . 1 . . . . . 1 . . . . . 2 Propulsion 4 | . . . . . . . 2 . . 1 . 1 . . . . Utility 9 | . . . . 2 . 1 1 . . . 1 2 . 1 . 1 Weapon 8 | . . 3 1 . 1 1 . . . . . 1 . 1 . . Tool/Special . | . . . . . . . . . . . . . . . . . Average Slot Usage (%) 96 | . 93 98 99 99 99 99 99 99 100 99 98 99 94 94 85 11 Engine 5 | . 14 11 11 7 . 7 6 3 . . 5 5 5 . . . Core 4 | . . . . 1 14 4 5 9 13 7 . 3 1 8 1 . Reactor 1 | . . . . . . . . . . 3 5 . 3 3 9 2 Treads 6 | . 13 . 1 15 23 20 1 . . . 16 23 21 . . . Leg 15 | . 14 32 31 11 . . 18 19 20 20 6 . . 18 15 5 Device 15 | . . . 11 11 26 27 17 11 11 12 21 22 21 22 24 . Storage 10 | . 14 11 11 9 7 6 13 13 13 13 11 11 10 9 7 . Processor 7 | . . . . 8 3 4 8 13 13 13 11 11 10 9 7 . Protection 10 | . 7 20 11 14 6 12 12 14 14 13 1 . 4 4 3 . Energy Gun 3 | . . 7 . . 5 12 6 3 6 1 2 . . . . 2 Energy Cannon 6 | . . 4 11 14 9 . 3 3 . 4 12 15 15 9 7 . Ballistic Gun 2 | . 28 9 11 3 . . . . . . . . . . . . Ballistic Cannon 1 | . . . . . . . . 1 6 5 . . . 3 3 . Peak Build Rating 145 | 6 7 17 19 35 50 65 68 72 74 83 99 98 107 129 145 38 Average Rating 63 | 4 6 12 16 30 45 60 61 66 72 77 93 94 105 125 130 26 On Entrance 53 | . 6 7 16 19 35 47 61 67 72 74 82 95 97 105 128 1 Naked Turns 54 | . . . . . . . . . . . . . . . 18 36 Heaviest Build 166 | 13 31 40 39 48 73 96 100 104 100 113 109 109 116 132 166 26 Greatest Support 120 | 20 40 30 33 65 60 60 60 58 53 63 120 120 120 120 117 55 Greatest Overweight (x) 3 | 1 1 1 1 2 1 1 3 2 1 2 1 . . 1 2 . Average Overweight (x) . | . . 1 1 . . 1 1 1 1 1 . . . . . . Largest Inventory Capacity 20 | 8 15 15 15 15 20 20 20 20 20 20 20 20 20 20 20 5 Average Capacity 17 | 7 8 15 15 15 15 20 20 20 20 20 20 20 20 20 19 5 Most Carried 20 | 5 8 15 15 15 17 20 20 20 19 20 20 20 20 20 20 5 Average Carried 16 | 3 5 13 14 14 13 19 19 18 16 19 19 19 18 19 18 3 Final Capacity 20 | 8 15 15 15 15 20 20 20 20 20 20 20 20 20 20 5 5 Final Carried 20 | 4 8 15 15 15 17 20 20 17 19 18 20 20 20 20 3 4 Class Distribution -------------------- 50% | Scavenger-Mutant 20% | Mutant 14% | Scavenger-Gunner 8% | Commander-Mutant 5% | Scavenger-Tank Dominant Class ---------------- Mutant | -10/Materials Mutant | -9/Materials Mutant | -9/Mines Scavenger-Mutant | -8/Materials Scavenger-Mutant | -7/Factory Scavenger-Mutant | -6/Factory Scavenger-Mutant | -6/Extension Scavenger-Mutant | -6/Cetus Scavenger-Mutant | -6/Archives Scavenger-Mutant | -6/Hub_04(d) Scavenger-Gunner | -5/Factory Scavenger-Gunner | -5/DSF Scavenger-Gunner | -4/Factory Scavenger-Gunner | -3/Research Scavenger-Tank | -2/Research Mutant | -2/Quarantine Resources | -11 -10 -9 -9 -8 -7 -6 -6 -6 -6 -6 -5 -5 -4 -3 -2 -2 ----------- Run | Yrd Mat Mat Min Mat Fac Fac Ext Cet Arc Hub Fac DSF Fac Res Res Qua Matter Collected 4504 | 209 484 201 236 564 50 120 755 225 219 368 135 219 . 330 384 5 Remotely . | . . . . . . . . . . . . . . . . . Salvage Created 7363 | . 533 283 119 930 298 899 1416 141 47 528 371 340 . 359 1061 38 Parts 312 | . 34 10 5 55 16 24 57 4 . 21 8 19 . 10 45 4 Haulers Intercepted 5 | . . 1 . 2 1 1 . . . . . . . . . . Recyclers Shooed 5 | . . . . . . 1 1 . . 1 1 . . . 1 . Parts Field Recycled 3 | . . . . . 3 . . . . . . . . . . . Retrieved Matter 77 | . . . . . 77 . . . . . . . . . . . Parts Self-Destructed . | . . . . . . . . . . . . . . . . . Prevented . | . . . . . . . . . . . . . . . . . Kills | -11 -10 -9 -9 -8 -7 -6 -6 -6 -6 -6 -5 -5 -4 -3 -2 -2 ------- Run | Yrd Mat Mat Min Mat Fac Fac Ext Cet Arc Hub Fac DSF Fac Res Res Qua Combat Hostiles Destroyed 115 | . 15 5 6 18 4 10 21 2 1 6 . 7 . 3 16 1 Guns 41 | . 15 3 3 2 1 8 8 . . . . . . . . 1 Cannons 60 | . . 2 3 16 3 . 8 . 1 6 . 3 . 3 15 . AOE 8 | . . . . . . . 3 2 . . . 3 . . . . Classes Destroyed 19 | . 3 3 1 3 2 2 4 . . 1 . . . . . . Worker 4 | . . . . . 1 . 1 . . . . . . . 2 . Builder 6 | . . . . 1 . . 1 . . 3 . . . . 1 . Hauler 5 | . . 1 . 2 1 1 . . . . . . . . . . Recycler 9 | . 1 . 1 1 . 1 . . . 1 3 . . 1 . . Mechanic 2 | . . . . . . . 1 . . . 1 . . . . . Operator 2 | . . 1 . . . . . . . . 1 . . . . . Watcher 9 | . . . . 1 1 2 1 1 . 2 . . . . 1 . Swarmer 21 | . 6 . . 6 . . . . . . . 3 . . 5 1 Saboteur 1 | . . . . . . . 1 . . . . . . . . . Grunt 51 | . 9 4 . 5 3 7 12 1 . 2 . . . 1 7 . Brawler 3 | . . . . . . . 3 . . . . . . . . . Duelist 1 | . . . . . . 1 . . . . . . . . . . Sentry 15 | . . 1 . 6 . 1 2 . 1 . . . . 2 2 . Specialist 3 | . . . . . . . . . . 2 . 1 . . . . Hunter 6 | . . . . . . 1 2 . . 1 . 2 . . . . Programmer 2 | . . . . . 1 . . . . . . . . . 1 . Heavy 3 | . . . . 1 . . . . . . . 1 . . 1 . Behemoth 2 | . . . . . . . 1 . . 1 . . . . . . Cetus Guard 1 | . . . . . . . . 1 . . . . . . . . Enhanced Grunt 1 | . . . . . . . . . . 1 . . . . . . Assembled 6 | . . . 6 . . . . . . . . . . . . . Thug 1 | . . . . . . . 1 . . . . . . . . . Savage 1 | . . . . . . . . 1 . . . . . . . . Guerrilla 1 | . . . . . . . . 1 . . . . . . . . Best Kill Streak 5 | . 3 2 5 5 4 4 4 1 1 3 5 4 . 2 5 1 Combat Bots Only 5 | . 3 2 5 5 2 3 4 1 1 2 . 4 . 1 5 1 Max Kills in Single Turn 4 | . 1 1 1 1 1 1 2 1 1 1 4 3 . 2 1 1 Gunslinging . | . . . . . . . . . . . . . . . . . Exploded 3 | . . . . . . . 1 1 . . . 3 . . . . Melee . | . . . . . . . . . . . . . . . . . Uniques/NPCs Destroyed . | . . . . . . . . . . . . . . . . . Combat | -11 -10 -9 -9 -8 -7 -6 -6 -6 -6 -6 -5 -5 -4 -3 -2 -2 -------- Run | Yrd Mat Mat Min Mat Fac Fac Ext Cet Arc Hub Fac DSF Fac Res Res Qua Hostile Shots Fired 1451 | . 98 30 33 165 37 77 263 78 4 116 . 38 . 27 440 45 Missed 437 | . 31 7 12 52 13 33 72 25 1 31 . 14 . 13 115 18 Deflected 11 | . . . . . . . . . . . . . . . 11 . Hits 1014 | . 67 23 21 113 24 44 191 53 3 85 . 24 . 14 325 27 Melee 6 | . . . 3 . . . 3 . . . . . . . . . Projectile 1008 | . 67 23 18 113 24 44 188 53 3 85 . 24 . 14 325 27 Critical Strikes 32 | . 1 1 . 3 . 1 5 7 . 1 . . . . 10 3 Actively Blocked 4 | . . . . . . . . . . . . . . . 4 . Part Disruptions 5 | . . . . . . . . . . 5 . . . . . . Damage Taken 15902 | . 691 300 334 1722 173 924 2013 988 87 1078 . 489 . 246 6256 601 Core 2342 | . 126 10 43 170 8 73 174 85 . 108 . 57 . 26 1344 118 Absorbed by Shields 2879 | . . . . . 60 140 932 348 30 72 . 178 . . 1119 . Redirected to Shielding 44 | . 28 16 . . . . . . . . . . . . . . Ignored by Resistances 649 | . . . . 37 . . 50 . . 28 . . . 85 449 . Core Remaining (%) 82 | 100 49 . 86 69 98 . . . . 48 . 94 100 98 . . Volleys Fired 511 | 1 81 28 17 66 25 37 65 16 7 57 6 16 5 18 60 6 Largest 3 | 2 2 2 2 2 2 2 2 2 2 2 3 3 1 3 3 1 Hottest 276 | 40 40 100 91 130 130 120 145 134 113 155 261 223 90 231 276 65 Shots Fired 1003 | 2 162 52 34 132 50 74 127 26 13 104 10 36 5 46 124 6 Gun 426 | 2 162 40 17 26 16 74 58 1 6 12 . . . . 6 6 Cannon 553 | . . 12 17 106 34 . 59 15 7 92 10 32 5 46 118 . Launcher 19 | . . . . . . . 5 10 . . . 4 . . . . Special 5 | . . . . . . . 5 . . . . . . . . . Kinetic 328 | 2 162 17 17 26 . . . 2 7 50 . . . 12 33 . Thermal 653 | . . 35 17 106 50 74 122 14 6 54 8 32 5 34 90 6 Explosive 19 | . . . . . . . 5 10 . . . 4 . . . . Electromagnetic 3 | . . . . . . . . . . . 2 . . . 1 . Robot Hit Streak 28 | 1 10 7 2 12 10 17 19 9 5 10 15 28 4 4 7 3 Robot Miss Streak 8 | 1 8 3 3 3 4 2 4 2 3 6 . 1 . 3 3 3 Penetration Max . | . . . . . . . . . . . . . . . . . Secondary Targets 10 | . 7 1 . . . 2 . . . . . . . . . . Max Gunslinging Chain 1 | . 1 1 . . . 1 . . . . . . . . . . Shots Hit Robots 577 | 1 87 32 15 79 22 57 90 17 6 49 5 29 1 16 67 4 Core Hits 296 | . 33 8 8 35 9 24 65 27 5 21 6 10 . 10 34 1 Critical Kills 3 | . . . . . . . 1 . . . . 1 . . 1 . Critical Parts Destroyed . | . . . . . . . . . . . . . . . . . Critical Strikes 17 | . . 1 . . . 3 2 . . 7 . 1 . . 3 . Burn 5 | . . 1 . . . 3 1 . . . . . . . . . Meltdown 3 | . . . . . . . 1 . . . . 1 . . 1 . Blast 9 | . . . . . . . . . . 7 . . . . 2 . Melee Attacks . | . . . . . . . . . . . . . . . . . Impact . | . . . . . . . . . . . . . . . . . Slashing . | . . . . . . . . . . . . . . . . . Piercing . | . . . . . . . . . . . . . . . . . Sneak Attacks . | . . . . . . . . . . . . . . . . . Combat Hostiles . | . . . . . . . . . . . . . . . . . Follow-up Attacks . | . . . . . . . . . . . . . . . . . Damage Inflicted 18706 | 10 930 525 262 1788 681 2025 3447 1667 158 1741 662 1241 33 599 2816 121 Guns 5736 | 10 930 310 138 175 199 2025 1509 20 70 116 . . . . 113 121 Cannons 9621 | . . 205 124 1457 482 . 1103 246 88 1578 211 807 33 599 2688 . Explosions 3296 | . . . . 156 . . 807 1401 . 47 451 434 . . . . Melee . | . . . . . . . . . . . . . . . . . Ramming 30 | . . 10 . . . . 5 . . . . . . . 15 . Kinetic 3320 | 10 930 148 138 175 . . . 54 88 865 . . . 224 688 . Thermal 12693 | . . 367 124 1613 681 2025 2635 212 70 876 641 807 33 375 2113 121 Explosive 2642 | . . . . . . . 807 1401 . . . 434 . . . . Electromagnetic 21 | . . . . . . . . . . . 21 . . . . . Impact . | . . . . . . . . . . . . . . . . . Slashing . | . . . . . . . . . . . . . . . . . Piercing . | . . . . . . . . . . . . . . . . . Highest Corruption 15 | . . 3 3 . . 6 6 6 6 15 . . . . 9 10 Average Corruption 5 | . . 3 3 . . 4 6 6 6 8 . . . . 2 9 Corruption Purged . | . . . . . . . . . . . . . . . . . Corruption Blocked . | . . . . . . . . . . . . . . . . . Effects 144 | . . 6 10 . . 5 59 17 11 27 . . . . 4 5 Message Errors 35 | . . 4 3 . . 1 10 3 5 8 . . . . . 1 Matter Fused 34 | . . 1 1 . . 2 15 4 2 5 . . . . 3 1 Heat Flow Errors 17 | . . 1 . . . . 10 1 1 2 . . . . . 2 Energy Discharges 15 | . . . 1 . . 1 7 3 2 1 . . . . . . Parts Rejected 1 | . . . . . . . . . . 1 . . . . . . Parts Fused 2 | . . . 1 . . . . . . 1 . . . . . . Data Loss (minor) 15 | . . . 2 . . 1 8 2 . 1 . . . . . 1 Data Loss (major) 9 | . . . 2 . . . 4 1 . 1 . . . . 1 . Misfires 5 | . . . . . . . 2 . 1 2 . . . . . . Alerts 2 | . . . . . . . 1 . . 1 . . . . . . Weapon Failures 9 | . . . . . . . 2 3 . 4 . . . . . . Overload Shots 109 | . . . . . 12 66 31 . . . . . . . . . Effects 7 | . . . . . 1 4 2 . . . . . . . . . Energy Bleed 2 | . . . . . . 2 . . . . . . . . . . Heat Surge 4 | . . . . . 1 2 1 . . . . . . . . . Short Circuit 1 | . . . . . . . 1 . . . . . . . . . Overflow Damage 272 | . . . 2 36 8 . 16 53 . 36 77 19 . 3 22 . Projectiles 102 | . . . 2 1 8 . 16 . . 24 7 19 . 3 22 . Explosions 170 | . . . . 35 . . . 53 . 12 70 . . . . . Melee . | . . . . . . . . . . . . . . . . . Knockbacks 15 | . . . . . . . . . . 7 . . . 2 6 . Impact . | . . . . . . . . . . . . . . . . . Kinetic 15 | . . . . . . . . . . 7 . . . 2 6 . Secondary . | . . . . . . . . . . . . . . . . . Self-Inflicted Damage 435 | . . 10 . . . . 232 113 . . . 80 . . . . Shots 10 | . . . . . . . 5 2 . . . 3 . . . . Rammed . | . . . . . . . . . . . . . . . . . Targets Rammed 2 | . . . . . . . 1 . . . . . . . 1 . Kicked 2 | . . . . . . . 1 . . . . . . . 1 . Crushed . | . . . . . . . . . . . . . . . . . Highest Temperature 513 | . 37 351 73 152 127 152 327 198 246 282 165 12 . 135 513 208 Average Temperature 83 | . 10 132 28 39 31 72 91 44 139 41 88 5 . 45 145 117 Received Heat Transfer 2535 | . 288 150 . 333 94 171 565 34 13 141 . . . 57 689 . Effects 12 | . . 3 . . . . 2 . 3 . . . . . 4 . Shutdowns 4 | . . . . . . . 2 . . . . . . . 2 . Energy Bleed 2 | . . 1 . . . . . . . . . . . . 1 . Interference 5 | . . 2 . . . . . . 3 . . . . . . . Damage (minor) 1 | . . . . . . . . . . . . . . . 1 . Siege Activations . | . . . . . . . . . . . . . . . . . Martial Activations . | . . . . . . . . . . . . . . . . . Shielding Activations 8 | . . . . . . . . . . . . . . 2 6 . Total Turns 93 | . . . . . . . . . . . . . . 9 84 . Longest Duration 27 | . . . . . . . . . . . . . . 6 27 . Robots Disrupted . | . . . . . . . . . . . . . . . . . Combat Hostiles . | . . . . . . . . . . . . . . . . . Robots Corrupted . | . . . . . . . . . . . . . . . . . Combat Hostiles . | . . . . . . . . . . . . . . . . . Parts Fried 1 | . . . . . . . 1 . . . . . . . . . Impact Corruptions . | . . . . . . . . . . . . . . . . . Robots Melted 6 | . . . . . . 2 2 . . . . 1 . . 1 . Combat Hostiles 6 | . . . . . . 2 2 . . . . 1 . . 1 . Parts Melted 26 | . . . . 5 . 5 6 . . . . 5 . . 5 . Heat Transferred 16466 | . . 925 222 2542 916 3059 4110 296 148 346 350 962 37 444 1961 148 Parts Sabotaged . | . . . . . . . . . . . . . . . . . Parts Stolen . | . . . . . . . . . . . . . . . . . Parts Stripped . | . . . . . . . . . . . . . . . . . Power Chain Reactions 1 | . . . . . . . . . . 1 . . . . . . Alert | -11 -10 -9 -9 -8 -7 -6 -6 -6 -6 -6 -5 -5 -4 -3 -2 -2 ------- Run | Yrd Mat Mat Min Mat Fac Fac Ext Cet Arc Hub Fac DSF Fac Res Res Qua Maximum Alert Level 5 | . . . . 1 . . 5 4 2 3 2 2 1 . 1 . Low Security (%) 59 | 100 100 100 100 83 100 100 27 . . 7 . . 25 100 94 100 Level 1 12 | . . . . 16 . . 19 . . 6 80 74 74 . 5 . Level 2 12 | . . . . . . . 25 . 100 28 20 25 . . . . Level 3 11 | . . . . . . . 12 78 . 57 . . . . . . Level 4 3 | . . . . . . . 12 21 . . . . . . . . Level 5 . | . . . . . . . 1 . . . . . . . . . High Security . | . . . . . . . . . . . . . . . . . Max Security . | . . . . . . . . . . . . . . . . . Peak Influence 1628 | . 121 42 6 255 108 155 1628 1222 658 845 461 551 289 86 218 25 Initial 908 | . . 18 6 . 108 25 34 908 469 170 403 319 289 86 . . Average 296 | . 35 11 . 146 50 57 524 1020 563 660 372 384 227 19 82 2 Influence Increases 7608 | . 387 149 5 730 165 315 2825 630 209 1077 143 262 16 126 534 35 Destroy 0b10 Robot/C 3740 | . 300 100 . 360 80 200 1380 260 80 440 . 140 . 60 320 20 Destroy 0b10 Robot/NC 235 | . 5 10 5 25 15 20 40 10 . 55 25 . . 5 20 . Destroy Leader 652 | . 60 32 . 116 24 36 154 20 . 108 . 20 . 20 62 . Allied During Kill 1531 | . . . . . . . 927 225 80 299 . . . . . . Successful Hack 87 | . 6 6 . 6 19 . 34 3 . . 5 . 8 . . . Disable Machine 435 | . . . . 45 15 30 75 15 45 75 75 15 . 15 15 15 Destroy Structure 583 | . 1 1 . 43 12 29 95 97 4 55 38 72 8 26 102 . Partial Spotted 15 | . 15 . . . . . . . . . . . . . . . Lose Combat Pursuer 330 | . . . . 135 . . 120 . . 45 . 15 . . 15 . Influence Decreases 7593 | . 341 179 21 491 351 298 1271 1080 895 742 510 167 402 291 534 20 Entered New Map 2870 | . . 28 10 . 131 28 36 716 705 318 420 137 262 79 . . Time Decay 3378 | . 234 151 11 421 220 250 614 294 190 334 90 . 140 212 207 10 Lost Part 568 | . 10 . . 70 . 20 41 30 . 30 . 30 . . 327 10 Lost Ally 680 | . . . . . . . 580 40 . 60 . . . . . . Purge Threat 97 | . 97 . . . . . . . . . . . . . . . Squads Dispatched 44 | . 4 2 . 2 2 3 9 2 . 7 . 1 . 7 4 1 Investigation 14 | . 1 1 . 1 . . 6 2 . . . . . 3 . . Extermination 6 | . . . . . 1 1 . . . 1 . . . . 2 1 Reinforcement 20 | . 3 1 . 1 1 2 1 . . 4 . 1 . 4 2 . Assault 4 | . . . . . . . 2 . . 2 . . . . . . Garrison . | . . . . . . . . . . . . . . . . . Intercept . | . . . . . . . . . . . . . . . . . Searches Triggered . | . . . . . . . . . . . . . . . . . Construction Impeded 1 | . . . . . . . . . . 1 . . . . . . Haulers Reinforced 5 | . . . . . 1 2 . . . . . . . 2 . . Active Scanning Responses . | . . . . . . . . . . . . . . . . . Cargo Convoy Interrupts . | . . . . . . . . . . . . . . . . . Stealth | -11 -10 -9 -9 -8 -7 -6 -6 -6 -6 -6 -5 -5 -4 -3 -2 -2 --------- Run | Yrd Mat Mat Min Mat Fac Fac Ext Cet Arc Hub Fac DSF Fac Res Res Qua Distress Signals 23 | . 3 1 1 1 . . 3 2 . 5 . . . 6 1 . Communications Jammed 54 | . . . . . 2 11 . . . . . . . . 41 . Distress Signals 53 | . . . . . 1 11 . . . . . . . . 41 . Times Spotted 269 | . 23 7 9 29 9 14 69 13 5 29 1 9 . 12 31 9 Peak Tracking Total 11 | . 6 2 7 7 3 4 8 5 2 4 1 5 . 2 11 7 Tactical Retreats 16 | . . . . 5 . . 6 . . 3 . 1 . . 1 . Traps | -11 -10 -9 -9 -8 -7 -6 -6 -6 -6 -6 -5 -5 -4 -3 -2 -2 ------- Run | Yrd Mat Mat Min Mat Fac Fac Ext Cet Arc Hub Fac DSF Fac Res Res Qua Traps Triggered 14 | . 1 1 . 1 . 3 4 . . 4 . . . . . . Indirectly . | . . . . . . . . . . . . . . . . . Trap Hack Attempts . | . . . . . . . . . . . . . . . . . Triggered . | . . . . . . . . . . . . . . . . . Disarmed . | . . . . . . . . . . . . . . . . . Reprogrammed . | . . . . . . . . . . . . . . . . . Reused . | . . . . . . . . . . . . . . . . . Traps Extracted . | . . . . . . . . . . . . . . . . . Installed . | . . . . . . . . . . . . . . . . . Triggered . | . . . . . . . . . . . . . . . . . Machines | -11 -10 -9 -9 -8 -7 -6 -6 -6 -6 -6 -5 -5 -4 -3 -2 -2 ---------- Run | Yrd Mat Mat Min Mat Fac Fac Ext Cet Arc Hub Fac DSF Fac Res Res Qua Machines Disabled 30 | . . . . 3 1 2 5 2 3 5 5 1 . 1 1 1 Max in Single Turn 4 | . . . . 2 1 1 1 1 1 1 4 1 . 1 1 1 Energy Cycler 1 | . . . . . . . 1 . . . . . . . . . Machines Repaired . | . . . . . . . . . . . . . . . . . Machines Dismantled 5 | . . . . . . 1 3 1 . . . . . . . . Machines Sabotaged . | . . . . . . . . . . . . . . . . . Overloaded Fab Kills . | . . . . . . . . . . . . . . . . . Hacking | -11 -10 -9 -9 -8 -7 -6 -6 -6 -6 -6 -5 -5 -4 -3 -2 -2 --------- Run | Yrd Mat Mat Min Mat Fac Fac Ext Cet Arc Hub Fac DSF Fac Res Res Qua Machines Accessed 38 | . 3 2 1 4 3 1 13 3 1 2 1 . 2 1 1 . Terminals 32 | . 3 2 1 3 1 1 13 3 . 2 1 . 1 . 1 . Fabricators . | . . . . . . . . . . . . . . . . . Repair Stations 2 | . . . . 1 1 . . . . . . . . . . . Recycling Units 2 | . . . . . 1 . . . . . . . . 1 . . Scanalyzers 1 | . . . . . . . . . . . . . 1 . . . Garrison Access . | . . . . . . . . . . . . . . . . . Total Hacks 102 | . 9 7 1 14 10 1 34 6 5 3 4 . 6 1 1 . Successful 30 | . 3 1 . 4 4 . 7 1 5 . 1 . 4 . . . Failed 72 | . 6 6 1 10 6 1 27 5 . 3 3 . 2 1 1 . Catastrophic 25 | . 2 . 1 4 1 1 11 1 . 2 . . . 1 1 . Database Lockouts . | . . . . . . . . . . . . . . . . . Manual 51 | . 8 7 1 12 1 1 13 1 2 3 . . 1 . 1 . Terminals 85 | . 9 7 1 13 3 1 34 6 . 3 4 . 3 . 1 . Fabricators . | . . . . . . . . . . . . . . . . . Repair Stations 4 | . . . . 1 3 . . . . . . . . . . . Recycling Units 5 | . . . . . 4 . . . . . . . . 1 . . Scanalyzers 3 | . . . . . . . . . . . . . 3 . . . Garrison Access . | . . . . . . . . . . . . . . . . . Terminal Hacks 25 | . 3 1 . 4 1 . 7 1 5 . 1 . 2 . . . Record 9 | . . . . . . . 2 1 5 . . . 1 . . . Prototype ID Bank 2 | . . 1 . 1 . . . . . . . . . . . . Open Door 3 | . . . . . . . 3 . . . . . . . . . Open DSF 1 | . . . . . . . . . . . 1 . . . . . Branch Access Points 1 | . . . . . . . 1 . . . . . . . . . Terminal Index 4 | . 1 . . 1 . . 1 . . . . . 1 . . . Unreport Threat 1 | . 1 . . . . . . . . . . . . . . . Recall Investigation 2 | . . . . 1 1 . . . . . . . . . . . Zone Layout 2 | . 1 . . 1 . . . . . . . . . . . . Fabricator Hacks . | . . . . . . . . . . . . . . . . . Repair Station Hacks 1 | . . . . . 1 . . . . . . . . . . . Scan Component 1 | . . . . . 1 . . . . . . . . . . . Recycling Unit Hacks 2 | . . . . . 2 . . . . . . . . . . . Process 1 | . . . . . 1 . . . . . . . . . . . Report Inventory 1 | . . . . . 1 . . . . . . . . . . . Scanalyzer 2 | . . . . . . . . . . . . . 2 . . . Insert Component 1 | . . . . . . . . . . . . . 1 . . . Analyze 1 | . . . . . . . . . . . . . 1 . . . Garrison Access Hacks . | . . . . . . . . . . . . . . . . . Unauthorized Hacks . | . . . . . . . . . . . . . . . . . Terminals . | . . . . . . . . . . . . . . . . . Fabricators . | . . . . . . . . . . . . . . . . . Repair Stations . | . . . . . . . . . . . . . . . . . Recycling Units . | . . . . . . . . . . . . . . . . . Scanalyzers . | . . . . . . . . . . . . . . . . . Garrison Access . | . . . . . . . . . . . . . . . . . Data Cores Recovered 1 | . . . . . . . . . . . . . . 1 . . Used . | . . . . . . . . . . . . . . . . . Hacking Detections 37 | . 3 2 1 4 3 1 12 4 . 2 1 . 2 1 1 . Full Trace Events 9 | . . . . 1 . . 6 2 . . . . . . . . Feedback Events . | . . . . . . . . . . . . . . . . . Feedback Blocked . | . . . . . . . . . . . . . . . . . Robot Schematics Acquired . | . . . . . . . . . . . . . . . . . Robots Built . | . . . . . . . . . . . . . . . . . Authchips . | . . . . . . . . . . . . . . . . . Time . | . . . . . . . . . . . . . . . . . Total Robot Build Rating . | . . . . . . . . . . . . . . . . . Part Schematics Acquired 1 | . . . . . . . . . . . . . 1 . . . Parts Built . | . . . . . . . . . . . . . . . . . Authchips . | . . . . . . . . . . . . . . . . . Time . | . . . . . . . . . . . . . . . . . Total Part Build Rating . | . . . . . . . . . . . . . . . . . Parts Repaired . | . . . . . . . . . . . . . . . . . Time . | . . . . . . . . . . . . . . . . . Parts Recycled . | . . . . . . . . . . . . . . . . . Recycled Matter 1 | . . . . . 1 . . . . . . . . . . . Retrieved Matter . | . . . . . . . . . . . . . . . . . Retrieved Components . | . . . . . . . . . . . . . . . . . Parts Scanalyzed 1 | . . . . . . . . . . . . . 1 . . . Part Schematics Acquired 1 | . . . . . . . . . . . . . 1 . . . Parts Damaged . | . . . . . . . . . . . . . . . . . Bothacking | -11 -10 -9 -9 -8 -7 -6 -6 -6 -6 -6 -5 -5 -4 -3 -2 -2 ------------ Run | Yrd Mat Mat Min Mat Fac Fac Ext Cet Arc Hub Fac DSF Fac Res Res Qua Used RIF Installer . | . . . . . . . . . . . . . . . . . Robots Hacked . | . . . . . . . . . . . . . . . . . Non-combat . | . . . . . . . . . . . . . . . . . Combat . | . . . . . . . . . . . . . . . . . Robot Hacks Applied . | . . . . . . . . . . . . . . . . . Relay Couplers Released . | . . . . . . . . . . . . . . . . . Fabnet Peak Effective % . | . . . . . . . . . . . . . . . . . Robots Rewired 27 | . . . . . . . 27 . . . . . . . . . Allies Hacked . | . . . . . . . . . . . . . . . . . Hacks Repelled . | . . . . . . . . . . . . . . . . . Allies | -11 -10 -9 -9 -8 -7 -6 -6 -6 -6 -6 -5 -5 -4 -3 -2 -2 -------- Run | Yrd Mat Mat Min Mat Fac Fac Ext Cet Arc Hub Fac DSF Fac Res Res Qua Total Allies 43 | . . . . . . . 38 5 . . . . . . . . Largest Group 19 | . . . . . . . 19 7 6 4 . . . . . . Highest-Rated Group 656 | . . . . . . . 575 656 605 379 . . . . . . Highest-Rated Ally 159 | . . . . . . . 159 159 137 96 . . . . . . Total Orders . | . . . . . . . . . . . . . . . . . Ally Attacks 420 | . . . . . . . 262 67 30 61 . . . . . . Total Damage 11578 | . . . . . . . 5991 2010 1058 2519 . . . . . . Kills 91 | . . . . . . . 55 12 3 21 . . . . . . Allies Corrupted . | . . . . . . . . . . . . . . . . . Allies Melted 1 | . . . . . . . 1 . . . . . . . . . Intel | -11 -10 -9 -9 -8 -7 -6 -6 -6 -6 -6 -5 -5 -4 -3 -2 -2 ------- Run | Yrd Mat Mat Min Mat Fac Fac Ext Cet Arc Hub Fac DSF Fac Res Res Qua Active Infowar (turns) 3643 | . . . . 76 489 773 32 . . . 138 264 291 893 687 . Optics 614 | . . . . . . 614 . . . . . . . . . . Sensors 2 | . . . . 2 . . . . . . . . . . . . Structural 1776 | . . . . 74 . . . . . . . . 122 893 687 . Jamming 3555 | . . . . . 489 773 32 . . . 138 264 291 893 675 . Robot Analysis Total . | . . . . . . . . . . . . . . . . . Derelict Logs Recovered . | . . . . . . . . . . . . . . . . . Drone Launches . | . . . . . . . . . . . . . . . . . Drone Recoveries . | . . . . . . . . . . . . . . . . . Exploration | -11 -10 -9 -9 -8 -7 -6 -6 -6 -6 -6 -5 -5 -4 -3 -2 -2 ------------- Run | Yrd Mat Mat Min Mat Fac Fac Ext Cet Arc Hub Fac DSF Fac Res Res Qua Turns Passed 10637 | 88 649 600 312 1155 489 773 2283 651 389 743 195 264 291 893 723 139 Spaces Moved 4207 | 68 259 200 125 496 214 237 810 244 189 225 95 112 172 368 253 140 Core 124 | 18 . . . . . . . . . . . . . . 34 72 Treads 1310 | . 114 . . 328 214 237 40 . . . 78 112 172 11 4 . Legs 2773 | 50 145 200 125 168 . . 770 244 189 225 17 . . 357 215 68 Wheels . | . . . . . . . . . . . . . . . . . Hover . | . . . . . . . . . . . . . . . . . Flight . | . . . . . . . . . . . . . . . . . Fastest Speed 50 | 50 120 190 190 120 170 250 190 190 190 190 160 160 160 160 50 50 Average Speed 184 | 104 140 190 190 172 177 250 193 190 190 226 165 160 160 210 188 84 Slowest Speed 330 | 120 190 190 190 260 250 250 330 260 190 260 190 160 160 240 280 120 Overloaded Moves . | . . . . . . . . . . . . . . . . . Propulsion Burnouts . | . . . . . . . . . . . . . . . . . Robots Hopped . | . . . . . . . . . . . . . . . . . Potential Cave-ins . | . . . . . . . . . . . . . . . . . Cave-ins Triggered 1 | . . . . . . 1 . . . . . . . . . . Exploration Rate (%) 32 | 3 49 17 25 40 7 7 79 84 95 27 4 74 7 14 7 16 Regions Visited 16 Branch Regions 6 Pre-discovered Areas 1 | . . . 1 . . . . . . . . . . . . . Known Exits Taken 2 | . . . . . . . 1 . . . 1 . . . . . Unknown Exits Taken 13 | 1 1 1 1 1 1 1 . 1 1 1 . . 1 1 1 . Scrap Searched . | . . . . . . . . . . . . . . . . . Spaces Dug 61 | . . . . 4 5 24 1 . . 12 . . 4 7 4 . Terrain Destroyed 512 | . . . 1 41 11 36 93 176 2 31 23 45 4 13 36 . Melee . | . . . . . . . . . . . . . . . . . Projectile 128 | . . . 1 9 11 13 8 2 2 26 1 2 4 13 36 . AOE 384 | . . . . 32 . 23 85 174 . 5 22 43 . . . . Terrain Rammed 1 | . . 1 . . . . . . . . . . . . . . Walls Destroyed . | . . . . . . . . . . . . . . . . . Machines Disabled . | . . . . . . . . . . . . . . . . . Actions | -11 -10 -9 -9 -8 -7 -6 -6 -6 -6 -6 -5 -5 -4 -3 -2 -2 --------- Run | Yrd Mat Mat Min Mat Fac Fac Ext Cet Arc Hub Fac DSF Fac Res Res Qua Total 6013 | 81 398 373 170 669 276 331 1326 366 208 346 122 167 183 451 392 154 Wait 420 | . 36 101 16 30 9 9 61 69 . 17 2 1 . 39 30 . Move 4191 | 67 258 199 124 495 213 236 809 243 188 224 94 111 171 367 252 140 Hop . | . . . . . . . . . . . . . . . . . Pick Up 119 | 7 4 16 4 18 3 12 12 2 6 3 6 11 1 4 7 3 Fast Attach 77 | 3 4 4 . 9 6 4 17 1 . 9 2 5 1 5 4 3 Attach 69 | 3 . 2 1 9 3 5 6 3 . 5 3 3 2 2 20 2 Detach 28 | . 1 3 . 2 5 3 4 1 . 3 . 2 2 1 1 . Swap 125 | . 8 7 4 16 6 5 31 14 3 7 5 4 1 7 7 . Drop 148 | . 6 12 4 24 6 11 31 3 4 11 4 14 . 8 10 . Fire 511 | 1 81 28 17 66 25 37 65 16 7 57 6 16 5 18 60 6 Melee . | . . . . . . . . . . . . . . . . . Ram 1 | . . 1 . . . . . . . . . . . . . . Kick 2 | . . . . . . . 1 . . . . . . . 1 . Crush . | . . . . . . . . . . . . . . . . . Escape Stasis 25 | . . . . . . . 15 . . 10 . . . . . . Rewire 247 | . . . . . . . 247 . . . . . . . . . Trap . | . . . . . . . . . . . . . . . . . Miscellaneous 50 | . . . . . . 9 27 14 . . . . . . . . Route ------- -11/Scrapyard -10/Materials (discovered 2 exits: *Mat x2) -9/Materials -9/Mines -8/Materials -7/Factory -6/Factory -6/Extension (discovered 2 exits: *Fac / *Cet) -6/Cetus (discovered 2 exits: *Fac / *Arc) -6/Archives (discovered 3 exits: *Fac / *Hub x2) -6/Hub_04(d) (discovered 2 exits: *Fac x2) -5/Factory -5/DSF -4/Factory -3/Research -2/Research -2/Quarantine (discovered 1 exit: [*Acc]) History --------- Turn | Location | Event 17 | -11/Scrapyard | Discovered new exit (range 15) 89 | -11/Scrapyard | Entered Materials 316 | -10/Materials | Build established: Mutant 468 | -10/Materials | Discovered new exit (range 13) 687 | -10/Materials | Core integrity fell below 50% 729 | -10/Materials | Discovered new exit (range 5) 738 | -10/Materials | Entered another Materials area 738 | -9/Materials | Evolved 2 slots: Propulsion x1, Utility x1 1255 | -9/Materials | Discovered new exit (range 8) 1338 | -9/Materials | Entered Mines 1339 | -9/Mines | Learned location of Storage (-9) 1400 | -9/Mines | Assembled infested the area 1588 | -9/Mines | Discovered new exit (range 11) 1650 | -9/Mines | Entered Materials 1650 | -8/Materials | Evolved 2 slots: Utility x2 1895 | -8/Materials | Build established: Scavenger-Mutant 2353 | -8/Materials | Build established: Mutant 2545 | -8/Materials | Lost 6 parts (2n3u1w) 2771 | -8/Materials | Discovered new exit (range 3) 2805 | -8/Materials | Entered Factory 2805 | -7/Factory | Evolved 2 slots: Power x1, Utility x1 2827 | -7/Factory | Build established: Scavenger-Mutant 3279 | -7/Factory | Discovered new exit (range 6) 3294 | -7/Factory | Entered another Factory area 3294 | -6/Factory | Evolved 2 slots: Utility x2 3908 | -6/Factory | Crushed by falling debris 4057 | -6/Factory | Discovered new exit (range 5) 4067 | -6/Factory | Entered Extension 4224 | -6/Extension | Lost 4 parts (2n2u) 4334 | -6/Extension | Rescued a captive Derelict 4335 | -6/Extension | Rescued a captive Derelict 4598 | -6/Extension | Rescued a captive Derelict 4599 | -6/Extension | Rescued a captive Derelict 4654 | -6/Extension | Rescued a captive Derelict 4655 | -6/Extension | Rescued a captive Derelict 4673 | -6/Extension | Build established: Commander-Mutant 4780 | -6/Extension | Lost 4 allies 5280 | -6/Extension | Lost 12 allies 5309 | -6/Extension | Spotted B-75 Beast 5309 | -6/Extension | Allies destroyed B-75 Beast 5328 | -6/Extension | Spotted B-75 Beast 5365 | -6/Extension | Destroyed B-75 Beast 5373 | -6/Extension | Lost 7 allies 5498 | -6/Extension | Rescued a captive Derelict 5501 | -6/Extension | Rescued a captive Derelict 5527 | -6/Extension | Identified exit to Cetus 5543 | -6/Extension | Rescued A7 5557 | -6/Extension | Build established: Scavenger-Mutant 5653 | -6/Extension | Rescued a captive Derelict 5654 | -6/Extension | Rescued a captive Derelict 5704 | -6/Extension | Energy Cycler disabled 5708 | -6/Extension | Rescued a captive Derelict 5817 | -6/Extension | First assault squad dispatched 6192 | -6/Extension | Disrupted transfer network 6240 | -6/Extension | Discovered new exit (range 10) 6350 | -6/Extension | Entered Cetus 6350 | -6/Cetus | Accompanied by 5 allies (A7) 6355 | -6/Cetus | Acquired a Cetus Manufacturing Module code from A7 6375 | -6/Cetus | Spotted Cetus Guard 6376 | -6/Cetus | Spotted Cetus Guard 6379 | -6/Cetus | Spotted Cetus Guard 6382 | -6/Cetus | Spotted Cetus Guard 6394 | -6/Cetus | Allies destroyed Cetus Guard 6403 | -6/Cetus | Allies destroyed Cetus Guard 6403 | -6/Cetus | Allies destroyed Cetus Guard 6407 | -6/Cetus | Destroyed Cetus Guard 6425 | -6/Cetus | Lost 3 allies 6485 | -6/Cetus | Started Cetus Manufacturing Module 6510 | -6/Cetus | Manufactured an Enhanced Grunt 6535 | -6/Cetus | Manufactured an Enhanced Grunt 6560 | -6/Cetus | Manufactured an Enhanced Grunt 6585 | -6/Cetus | Manufactured an Enhanced Grunt 6610 | -6/Cetus | Manufactured an Enhanced Grunt 6748 | -6/Cetus | Escorted A7 to Cetus Mainframe 6820 | -6/Cetus | Discovered new exit (range 15) 6857 | -6/Cetus | Spotted Cetus Guard 6858 | -6/Cetus | Spotted Cetus Guard 6866 | -6/Cetus | Spotted Cetus Guard 6866 | -6/Cetus | Allies destroyed Cetus Guard 6872 | -6/Cetus | Spotted Cetus Guard 6874 | -6/Cetus | Allies destroyed Cetus Guard 6875 | -6/Cetus | Allies destroyed Cetus Guard 6879 | -6/Cetus | Allies destroyed Cetus Guard 6889 | -6/Cetus | Discovered new exit (range 16) 6898 | -6/Cetus | Lost 3 parts (1n1u1w) 6899 | -6/Cetus | Met Revision 17 7001 | -6/Cetus | Entered Archives 7001 | -6/Archives | Accompanied by 6 allies (A7) 7006 | -6/Archives | Received a hacking code to weaken MAIN.C 7060 | -6/Archives | Unable to access archive contents 7081 | -6/Archives | Unable to access archive contents 7087 | -6/Archives | Discovered new exit (range 16) 7116 | -6/Archives | Unable to access archive contents 7188 | -6/Archives | Unable to access archive contents 7194 | -6/Archives | Discovered new exit (range 16) 7262 | -6/Archives | Discovered new exit (range 14) 7309 | -6/Archives | Unable to access archive contents 7390 | -6/Archives | Entered Hub_04(d) 7390 | -6/Hub_04(d) | Accompanied by 4 allies 7390 | -6/Hub_04(d) | Discovered new exit (range 11) 7597 | -6/Hub_04(d) | Spotted B-75 Beast 7613 | -6/Hub_04(d) | Destroyed B-75 Beast 7740 | -6/Hub_04(d) | First assault squad dispatched 7786 | -6/Hub_04(d) | Found Prototype Device 7786 | -6/Hub_04(d) | Identified Exp. Thermal Shield 7948 | -6/Hub_04(d) | System corruption reached 10% 8059 | -6/Hub_04(d) | Core integrity fell below 50% 8084 | -6/Hub_04(d) | Discovered new exit (range 6) 8133 | -6/Hub_04(d) | Entered Factory 8133 | -5/Factory | Evolved 2 slots: Propulsion x1, Weapon x1 8327 | -5/Factory | Identified exit to DSF 8328 | -5/Factory | Entered DSF 8365 | -5/DSF | Additional patrols routed to DSF 8501 | -5/DSF | Build established: Scavenger-Gunner 8509 | -5/DSF | Discovered new exit (range 14) 8592 | -5/DSF | Entered Factory 8592 | -4/Factory | Evolved 2 slots: Utility x2 8878 | -4/Factory | Discovered new exit (range 3) 8883 | -4/Factory | Entered Research 8883 | -3/Research | Evolved 2 slots: Power x1, Utility x1 9083 | -3/Research | Revision forces began assault on 0b10 9148 | -3/Research | Met up with Revision 17++ 9583 | -3/Research | Research terminal network offline 9764 | -3/Research | Discovered new exit (range 4) 9776 | -3/Research | Entered another Research area 9776 | -2/Research | Evolved 2 slots: Utility x1, Weapon x1 10387 | -2/Research | Build established: Scavenger-Tank 10395 | -2/Research | Spotted B-90 Cyclops 10481 | -2/Research | Released all parts (6) 10484 | -2/Research | Core integrity fell below 50% 10491 | -2/Research | Discovered new exit (range 15) 10492 | -2/Research | Core integrity fell below 20% 10499 | -2/Research | Entered Quarantine 10509 | -2/Quarantine | Lost 32 parts (6p9n11u6w) 10616 | -2/Quarantine | Cryocooling Duct disabled 10629 | -2/Quarantine | Released all parts (4) 10631 | -2/Quarantine | Ambient heat levels rising (+20) 10631 | -2/Quarantine | Non-combat units ordered to evacuate 10638 | -2/Quarantine | System corruption reached 10% 10638 | -2/Quarantine | Discovered new exit (range 12) 10638 | -2/Quarantine | Destroyed by G-73 Enforcer with Phase Gun Last Messages --------------- 10534_ Acquired Quantum Reactor. 10544_ System corrupted: Matter fused (-8). 10561_ Acquired Quantum Reactor. 10566_ System corrupted: Heat flow error (+247). 10614_ #DPOM3H4G1 8V3IKGS0LRFQOQBPXBTJOA 10616_ Cryocooling Duct disabled. 10624_ S-43 Plague destroyed. 10625_ Myomer Leg destroyed. 10628_ ALERT: Potential suspicious activity detected, Programmers report to Quarantine Zone 4A. 10628_ S-43 Plague destroyed. 10629_ Released Quantum Reactor. 10629_ Released Centrium Leg. 10629_ Released Enh. Quantum Rifle. 10629_ Released Quantum Reactor. 10631_ ALERT: Ambient heat levels +20. 10631_ ALERT: All non-combat units evacuate. 10634_ System corrupted: Heat flow error (+257). 10638_ EXIT=FOUND [Achievement: 20k Club] Map ----- +----------------------------------------------------+ | ?????????????????????????????????????????????????? | | ?????????????????????????????????????????????????? | | ?????????????????????????????????????????????????? | | ?????????????????????????????????????????????????? | | ?????????????????????????????????????????????????? | | ?????????????????????????????????????????????????? | | ?????????????????????????????????????????????????? | | ?????????????????????????????????????????????????? | | ?????????????????????????????????????????????????? | | ?????????????????????????????????????????????????? | | ?????????????????????????????????????????????????? | | ????????????????????? ????????????????????????? | | ????????????????????# ????????????????????????? | | ????????????????????# ????????????????????????? | | ????????????????????# ????????????????????????? | | ????????????????????# #???????????????????????? | | ????????????????????# #???????????????????????? | | ????????????????????# #???????????????????????? | | ????????????######### #???????????????????????? | | ???????????? #???????????????????????? | | ???????????? #???????????????????????? | | ???????????? A #???????????????????????? | | ?????????????"" g ###############?????????? | | ?????????????"" k c ????????? | | """ ??????????" k ????????? | | ????????????"" """ @ u ????????? | | ???????????????""T""" ????????? | | ??????????????????#####+#######T## k #????? ????? | | ???????????????????# #?????????????? ?????? | | ???????????????????# """ #????????????? ?????? | | ???????????????????#! """ ############# ??????? | | ???????????????????# """ + ??????? | | ???????????????????#*** ## ??????? | | ???????????????????#*** "" ## """ """ ????? | | ??????????#####+####** S"" ## """""=""" #????? | | ########### # "" ## [ [=%[ #????? | | # ## =** =%= #????? | | ########### *** ########/## """ """ +???? | | ??????????# *** #??????# """G""" ##???? | | ??????????# #??????# ########+??????? | | ??????????# ######## #??????????????? | | ??????????# #??????????????? | | ??????????#########################??????????????? | | ?????????????????????????????????????????????????? | | ?????????????????????????????????????????????????? | | ?????????????????????????????????????????????????? | | | | | | | | | +----------------------------------------------------+ Best States ------------- Heat Dissipation 106 Energy Generation 63 Energy Capacity 1120 Matter Stores 300 Matter Capacity 300 Sight Range 18 Terrain Scan Density 10 Jamming Range 14 Armor Coverage 600 Resistance: KI 25 Resistance: TH 30 Resistance: EX 50 Resistance: EM 15 Weapon Shielding 33 Phase Shifting 5 Evasion (%) 55 Targeting Accuracy 5 Core Analysis 6 Armor Integrity Analysis 30 Recoil Reduction 4 Kinecelleration 30 Item Schematics ----------------- Imp. Cooling System | -4/Factory | Scanalyzed Robot Schematics ------------------ None Fabricated ------------ Nothing Repaired ---------- Nothing Alien Tech Used ----------------- None Achievements -------------- 20k Club Backstab Can't Touch This Generalissimo Main Advantage Overkill Prison Break Project G-00 Revising The Future Revolutionary Research Challenges ------------ None Game ------ Seed ImpactBoltManipulator Manual? 0 Play Time 02:50:51 Cumulative 48.8 hours Start 2025.10.16 @ 15:52:04 End 2025.10.16 @ 18:56:29 Sessions 1 Manual Loads 0 Difficulty Rogue Special Mode None Game No. 45 Rogue 45 Adventurer 0 Explorer 0 Win Type - Total 0 Types 0/0/0/0/0/0/0/0/0/0 Lore% 22 Gallery% 37 Achievement% 31 Wizard Run 0 Options --------- Layout 0 ASCII 0 Keyboard 0 Movement Mouse Keybinds 0 Fullscreen 1 Font 36/Smallcaps Map View 76x50 Zoom Use 0% Tactical HUD 1 Map Filters NONE Filters NONE Steam 1 RUN: 232ce454-7a48-4a22-a779-4590d22c5f4a